fUSD/lending_fUSD_20250507
["ID","MTS","AMOUNT","RATE_DAILY","PERIOD"]
[360157764,1746581449518,-450.0,0.00019578,2]
[360157765,1746581449527,-450.0,0.00019578,2]
[360157766,1746581449637,-450.0,0.00019578,2]
[360157767,1746581449646,-450.0,0.00019578,2]
[360157768,1746581449655,-450.0,0.00019578,2]
[360157769,1746581449664,-544.55,0.00019578,2]
[360157770,1746581449673,-544.55,0.00019578,2]
[360157771,1746581449683,-450.0,0.00019578,2]
[360157772,1746581449692,-450.0,0.00019578,2]
[360157773,1746581449701,-552.18,0.00019578,2]
[360157774,1746581449710,-552.18,0.00019578,2]
[360157775,1746581449719,-450.0,0.00019578,2]
[360157776,1746581449728,-450.0,0.00019578,2]
[360157777,1746581449738,-590.0,0.00019578,2]
[360157778,1746581449747,-450.0,0.00019578,2]
[360157779,1746581449756,-450.0,0.00019578,2]
[360157780,1746581449766,-540.0,0.00019578,2]
[360157781,1746581449775,-450.0,0.00019578,2]
[360157782,1746581449787,-450.0,0.00019578,2]
[360157783,1746581449796,-450.0,0.00019578,2]
[360157784,1746581449806,-450.0,0.00019578,2]
[360157785,1746581449815,-450.0,0.00019578,2]
[360157786,1746581449825,-450.0,0.00019578,2]
[360157787,1746581449834,-450.0,0.00019578,2]
[360157788,1746581449843,-450.0,0.00019578,2]
[360157789,1746581449853,-450.0,0.00019578,2]
[360157790,1746581449864,-596.99596749,0.00019578,2]
[360157791,1746581449873,-466.00729015,0.00019578,2]
[360157792,1746581449883,-450.0,0.00019578,2]
[360157793,1746581449893,-450.0,0.00019578,2]
[360157794,1746581449903,-450.0,0.00019578,2]
[360157795,1746581449912,-450.0,0.00019578,2]
[360157796,1746581449922,-450.0,0.00019578,2]
[360157797,1746581449932,-727.28,0.00019578,2]
[360157798,1746581449941,-727.28,0.00019578,2]
[360157799,1746581449950,-450.0,0.00019578,2]
[360157800,1746581449959,-450.0,0.00019578,2]
[360157801,1746581449969,-886.6,0.00019578,2]
[360157802,1746581449978,-886.6,0.00019578,2]
[360157803,1746581449987,-450.0,0.00019578,2]
[360157804,1746581449997,-450.0,0.00019578,2]
[360157805,1746581450006,-151.0,0.00019578,2]
[360157806,1746581450015,-450.0,0.00019578,2]
[360157807,1746581450024,-450.0,0.00019578,2]
[360157808,1746581450034,-450.0,0.00019578,2]
[360157809,1746581450043,-395.4,0.00019578,2]
[360157810,1746581450052,-861.54,0.00019578,2]
[360157811,1746581450062,-861.54,0.00019578,2]
[360157812,1746581450070,-927.83,0.00019578,2]
[360157813,1746581450079,-927.83,0.00019578,2]
[360157814,1746581450089,-1031.47,0.00019578,2]
[360157815,1746581450098,-450.0,0.00019578,2]
[360157816,1746581450107,-1031.47,0.00019578,2]
[360157817,1746581450116,-450.53,0.00019578,2]
[360157818,1746581450125,-450.53,0.00019578,2]
[360157819,1746581450134,-450.0,0.00019578,2]
[360157820,1746581450143,-450.0,0.00019578,2]
[360157821,1746581450152,-921.84,0.00019578,2]
[360157822,1746581450161,-921.84,0.00019578,2]
[360157823,1746581450171,-685.84,0.00019578,2]
[360157824,1746581450180,-685.84,0.00019578,2]
[360157825,1746581450188,-450.0,0.00019578,2]
[360157826,1746581450198,-450.0,0.00019578,2]
[360157827,1746581450206,-169.278717,0.00019578,2]
[360157828,1746581450215,-450.0,0.00019578,2]
[360157829,1746581450224,-450.0,0.00019578,2]
[360157830,1746581450233,-450.0,0.00019578,2]
[360157831,1746581450243,-450.0,0.00019578,2]
[360157832,1746581450252,-450.0,0.00019578,2]
[360157833,1746581450261,-450.0,0.00019578,2]
[360157834,1746581450270,-511.3,0.00019578,2]
[360157835,1746581450279,-532.13,0.00019578,2]
[360157836,1746581450288,-450.0,0.00019578,2]
[360157837,1746581450297,-450.0,0.00019578,2]
[360157838,1746581450306,-752.27,0.00019578,2]
[360157839,1746581450316,-752.27,0.00019578,2]
[360157840,1746581450326,-450.0,0.00019578,2]
[360157841,1746581450337,-522.16891712,0.00019578,2]
[360157842,1746581450346,-463.11,0.00019578,2]
[360157843,1746581450357,-450.0,0.00019578,2]
[360157844,1746581450366,-450.0,0.00019578,2]
[360157845,1746581450376,-994.3,0.00019578,2]
[360157846,1746581450385,-994.3,0.00019578,2]
[360157847,1746581450394,-703.93,0.00019578,2]
[360157848,1746581450403,-703.93,0.00019578,2]
[360157849,1746581450413,-641.75,0.00019578,2]
[360157850,1746581450422,-641.75,0.00019578,2]
[360157851,1746581450431,-450.0,0.00019578,2]
[360157852,1746581450440,-151.0,0.00019578,2]
[360157853,1746581450449,-484.14,0.00019578,2]
[360157854,1746581450459,-484.14,0.00019578,2]
[360157855,1746581450468,-754.38,0.00019578,2]
[360157856,1746581450477,-754.38,0.00019578,2]
[360157857,1746581450486,-525.55,0.00019578,2]
[360157858,1746581450495,-525.55,0.00019578,2]
[360157859,1746581450505,-586.26,0.00019578,2]
[360157860,1746581450514,-450.0,0.00019578,2]
[360157861,1746581450523,-450.0,0.00019578,2]
[360157862,1746581450532,-450.0,0.00019578,2]
[360157863,1746581450542,-513.02,0.00019578,2]
[360157864,1746581450551,-513.02,0.00019578,2]
[360157865,1746581450560,-1212.56,0.00019578,2]
[360157866,1746581450569,-1212.56,0.00019578,2]
[360157867,1746581450578,-450.0,0.00019578,2]
[360157868,1746581450587,-534.21,0.00019578,2]
[360157869,1746581450598,-450.0,0.00019578,2]
[360157870,1746581450607,-450.0,0.00019578,2]
[360157871,1746581450617,-450.0,0.00019578,2]
[360157872,1746581450626,-450.0,0.00019578,2]
[360157873,1746581450637,-450.0,0.00019578,2]
[360157874,1746581450646,-1505.72,0.00019578,2]
[360157875,1746581450655,-1505.72,0.00019578,2]
[360157876,1746581450665,-450.0,0.00019578,2]
[360157877,1746581450674,-450.0,0.00019578,2]
[360157878,1746581450683,-361.18,0.00019578,2]
[360157879,1746581450692,-1643.09,0.00019578,2]
[360157880,1746581450701,-1643.09,0.00019578,2]
[360157881,1746581450710,-450.0,0.00019578,2]
[360157882,1746581450720,-450.0,0.00019578,2]
[360157883,1746581450729,-450.0,0.00019578,2]
[360157884,1746581450738,-1789.96,0.00019578,2]
[360157885,1746581450747,-491.95,0.00019578,2]
[360157886,1746581450756,-491.95,0.00019578,2]
[360157887,1746581450765,-450.0,0.00019578,2]
[360157888,1746581450775,-450.0,0.00019578,2]
[360157889,1746581450784,-1002.61,0.00019578,2]
[360157890,1746581450793,-1002.61,0.00019578,2]
[360157891,1746581450803,-1002.61,0.00019578,2]
[360157892,1746581450812,-151.01838,0.00019578,2]
[360157893,1746581450822,-185.157984,0.00019578,2]
[360157894,1746581450832,-553.77,0.00019578,2]
[360157895,1746581450843,-553.77,0.00019578,2]
[360157896,1746581450853,-993.53,0.00019578,2]
[360157897,1746581450865,-993.53,0.00019578,2]
[360157898,1746581450874,-185.157984,0.00019578,2]
[360157899,1746581450884,-450.0,0.00019578,2]
[360157900,1746581450893,-1566.26,0.00019578,2]
[360157901,1746581450904,-1846.23,0.00019578,2]
[360157902,1746581450913,-2153.09,0.00019578,2]
[360157903,1746581450923,-2153.09,0.00019578,2]
[360157904,1746581450933,-1885.14,0.00019578,2]
[360157905,1746581450943,-1885.14,0.00019578,2]
[360157906,1746581450952,-2029.77,0.00019578,2]
[360157907,1746581450962,-450.0,0.00019578,2]
[360157908,1746581450971,-450.0,0.00019578,2]
[360157909,1746581450980,-1980.37,0.00019578,2]
[360157910,1746581450989,-1980.37,0.00019578,2]
[360157911,1746581451000,-450.0,0.00019578,2]
[360157912,1746581451010,-1980.37,0.00019578,2]
[360157913,1746581451021,-450.0,0.00019578,2]
[360157914,1746581451030,-533.71549019,0.00019578,2]
[360157915,1746581451039,-1064.29,0.00019578,2]
[360157916,1746581451048,-1064.29,0.00019578,2]
[360157917,1746581451057,-326.44285312,0.00019578,2]
[360157918,1746581451067,-457.12,0.00019578,2]
[360157919,1746581451075,-521.0,0.00019578,2]
[360157920,1746581451085,-610.71,0.00019578,2]
[360157921,1746581451094,-610.71,0.00019578,2]
[360157922,1746581451104,-2116.08,0.00019578,2]
[360157923,1746581451113,-2116.08,0.00019578,2]
[360157924,1746581451122,-490.0,0.00019578,2]
[360157925,1746581451131,-151.0,0.00019578,2]
[360157926,1746581451140,-450.0,0.00019578,2]
[360157927,1746581451150,-450.0,0.00019578,2]
[360157928,1746581451159,-450.0,0.00019578,2]
[360157929,1746581451168,-450.0,0.00019578,2]
[360157930,1746581451177,-450.0,0.00019578,2]
[360157931,1746581451186,-450.0,0.00019578,2]
[360157932,1746581451195,-450.0,0.00019578,2]
[360157933,1746581451299,-1168.38,0.00019578,2]
[360157934,1746581451309,-1168.38,0.00019578,2]
[360157935,1746581451318,-450.0,0.00019578,2]
[360157936,1746581451327,-1805.81,0.00019578,2]
[360157937,1746581451337,-1805.81,0.00019578,2]
[360157938,1746581451347,-450.0,0.00019578,2]
[360157939,1746581451356,-2041.53,0.00019578,2]
[360157940,1746581451365,-2041.53,0.00019578,2]
[360157941,1746581451374,-1309.44,0.00019578,2]
[360157942,1746581451383,-1309.44,0.00019578,2]
[360157943,1746581451393,-490.0,0.00019578,2]
[360157944,1746581451403,-450.0,0.00019578,2]
[360157945,1746581451412,-249.56745362,0.00019578,2]
[360157946,1746581451422,-1096.03,0.00019578,2]
[360157947,1746581451430,-1096.03,0.00019578,2]
[360157948,1746581451439,-4552.78,0.00019578,2]
[360157949,1746581451448,-2108.43,0.00019578,2]
[360157950,1746581451457,-28974.07,0.00019578,2]
[360157951,1746581451466,-2179.93,0.00019578,2]
[360157952,1746581451476,-2179.93,0.00019578,2]
[360157953,1746581451485,-450.0,0.00019578,2]
[360157954,1746581451494,-406.60308,0.00019578,2]
[360157955,1746581451503,-153.92,0.00019578,2]
[360157956,1746581451513,-450.0,0.00019578,2]
[360157957,1746581451522,-450.0,0.00019578,2]
[360157958,1746581451531,-637.34,0.00019578,2]
[360157959,1746581451540,-637.34,0.00019578,2]
[360157960,1746581451549,-637.34,0.00019578,2]
[360157961,1746581451558,-450.0,0.00019578,2]
[360157962,1746581451567,-450.0,0.00019578,2]
[360157963,1746581451577,-406.60308,0.00019578,2]
[360157964,1746581451585,-450.0,0.00019578,2]
[360157965,1746581451597,-450.0,0.00019578,2]
[360157966,1746581451607,-669.96,0.00019578,2]
[360157967,1746581451616,-669.96,0.00019578,2]
[360157968,1746581451625,-1353.91,0.00019578,2]
[360157969,1746581451634,-1353.91,0.00019578,2]
[360157970,1746581451643,-523.28256473,0.00019578,2]
[360157971,1746581451652,-599.79,0.00019578,2]
[360157972,1746581451662,-885.77,0.00019578,2]
[360157973,1746581451671,-599.79,0.00019578,2]
[360157974,1746581451680,-885.77,0.00019578,2]
[360157975,1746581451689,-450.0,0.00019578,2]
[360157976,1746581451698,-1964.65,0.00019578,2]
[360157977,1746581451707,-1964.65,0.00019578,2]
[360157978,1746581451717,-617.3,0.00019578,2]
[360157979,1746581451726,-617.3,0.00019578,2]
[360157980,1746581451736,-2328.02,0.00019578,2]
[360157981,1746581451745,-533.34,0.00019578,2]
[360157982,1746581451754,-533.34,0.00019578,2]
[360157983,1746581451764,-450.0,0.00019578,2]
[360157984,1746581451774,-1049.05,0.00019578,2]
[360157985,1746581451783,-1049.05,0.00019578,2]
[360157986,1746581451792,-9015.49,0.00019578,2]
[360157987,1746581451800,-980.73,0.00019578,2]
[360157988,1746581451810,-1185.76,0.00019578,2]
[360157989,1746581451819,-151.0,0.00019578,2]
[360157990,1746581451828,-706.4,0.00019578,2]
[360157991,1746581451838,-1185.76,0.00019578,2]
[360157992,1746581451848,-706.4,0.00019578,2]
[360157993,1746581451859,-706.4,0.00019578,2]
[360157994,1746581451870,-450.0,0.00019578,2]
[360157995,1746581451880,-450.0,0.00019578,2]
[360157996,1746581451890,-450.0,0.00019578,2]
[360157997,1746581451899,-1946.42,0.00019578,2]
[360157998,1746581451910,-450.0,0.00019578,2]
[360157999,1746581451919,-1946.42,0.00019578,2]
[360158000,1746581451929,-550.4676641,0.00019578,2]
[360158001,1746581451938,-774.65,0.00019578,2]
[360158002,1746581451947,-450.0,0.00019578,2]
[360158003,1746581451957,-1224.01,0.00019578,2]
[360158004,1746581451966,-1224.01,0.00019578,2]
[360158005,1746581451976,-37888.11,0.00019578,2]
[360158006,1746581451985,-37888.11,0.00019578,2]
[360158007,1746581451994,-37888.11,0.00019578,2]
[360158008,1746581452004,-464.76,0.00019578,2]
[360158009,1746581452013,-464.76,0.00019578,2]
[360158010,1746581452022,-612.57,0.00019578,2]
[360158011,1746581452032,-450.0,0.00019578,2]
[360158012,1746581452041,-151.0,0.00019578,2]
[360158013,1746581452050,-450.0,0.00019578,2]
[360158014,1746581452060,-965.98,0.00019578,2]
[360158015,1746581452069,-1079.53,0.00019578,2]
[360158016,1746581452079,-1079.53,0.00019578,2]
[360158017,1746581452089,-571.28,0.00019578,2]
[360158018,1746581452098,-571.28,0.00019578,2]
[360158019,1746581452108,-571.28,0.00019578,2]
[360158020,1746581452118,-467.81,0.00019578,2]
[360158021,1746581452127,-1393.73,0.00019578,2]
[360158022,1746581452137,-1393.73,0.00019578,2]
[360158023,1746581452146,-6325.32,0.00019578,2]
[360158024,1746581452155,-450.0,0.00019578,2]
[360158025,1746581452164,-450.0,0.00019578,2]
[360158026,1746581452174,-543.05,0.00019578,2]
[360158027,1746581452184,-543.05,0.00019578,2]
[360158028,1746581452193,-450.0,0.00019578,2]
[360158029,1746581452202,-1603.79,0.00019578,2]
[360158030,1746581452212,-470.0,0.00019578,2]
[360158031,1746581452221,-450.0,0.00019578,2]
[360158032,1746581452231,-450.0,0.00019578,2]
[360158033,1746581452240,-450.0,0.00019578,2]
[360158034,1746581452250,-450.0,0.00019578,2]
[360158035,1746581452259,-917.95,0.00019578,2]
[360158036,1746581452269,-450.0,0.00019578,2]
[360158037,1746581452279,-450.0,0.00019578,2]
[360158038,1746581452289,-535.08,0.00019578,2]
[360158039,1746581452298,-535.08,0.00019578,2]
[360158040,1746581452308,-450.0,0.00019578,2]
[360158041,1746581452318,-450.0,0.00019578,2]
[360158042,1746581452327,-460.64,0.00019578,2]
[360158043,1746581452336,-450.0,0.00019578,2]
[360158044,1746581452346,-460.64,0.00019578,2]
[360158045,1746581452355,-450.0,0.00019578,2]
[360158046,1746581452364,-473.49,0.00019578,2]
[360158047,1746581452373,-473.49,0.00019578,2]
[360158048,1746581452382,-579.66,0.00019578,2]
[360158049,1746581452390,-450.0,0.00019578,2]
[360158050,1746581452399,-450.0,0.00019578,2]
[360158051,1746581452408,-1078.26,0.00019578,2]
[360158052,1746581452417,-1078.26,0.00019578,2]
[360158053,1746581452426,-1840.0,0.00019578,2]
[360158054,1746581452436,-300.0,0.00019578,2]
[360158055,1746581452446,-450.0,0.00019578,2]
[360158056,1746581452455,-450.0,0.00019578,2]
[360158057,1746581452464,-450.0,0.00019578,2]
[360158058,1746581452473,-450.0,0.00019578,2]
[360158059,1746581452481,-450.0,0.00019578,2]
[360158060,1746581452490,-450.0,0.00019578,2]
[360158061,1746581452499,-450.0,0.00019578,2]
[360158062,1746581452509,-1585.46,0.00019578,2]
[360158063,1746581452517,-487.02448323,0.00019578,2]
[360158064,1746581452526,-1781.28,0.00019578,2]
[360158065,1746581452536,-1987.53,0.00019578,2]
[360158066,1746581452545,-450.0,0.00019578,2]
[360158067,1746581452554,-340.36777698,0.00019578,2]
[360158068,1746581452563,-724.4,0.00019578,2]
[360158069,1746581452572,-724.4,0.00019578,2]
[360158070,1746581452581,-450.0,0.00019578,2]
[360158071,1746581452591,-1539.1,0.00019578,2]
[360158072,1746581452600,-450.0,0.00019578,2]
[360158073,1746581452610,-1539.1,0.00019578,2]
[360158074,1746581452618,-152.27012,0.00019578,2]
[360158075,1746581452628,-450.0,0.00019578,2]
[360158076,1746581452637,-1628.14,0.00019578,2]
[360158077,1746581452646,-1628.14,0.00019578,2]
[360158078,1746581452656,-450.0,0.00019578,2]
[360158079,1746581452665,-450.0,0.00019578,2]
[360158080,1746581452675,-1817.42,0.00019578,2]
[360158081,1746581452684,-1817.42,0.00019578,2]
[360158082,1746581452693,-1817.42,0.00019578,2]
[360158083,1746581452702,-450.0,0.00019578,2]
[360158084,1746581452711,-450.0,0.00019578,2]
[360158085,1746581452721,-552.52,0.00019578,2]
[360158086,1746581452731,-552.52,0.00019578,2]
[360158087,1746581452740,-493.49,0.00019578,2]
[360158088,1746581452846,-493.49,0.00019578,2]
[360158089,1746581452858,-450.0,0.00019578,2]
[360158090,1746581452869,-450.0,0.00019578,2]
[360158091,1746581452878,-450.0,0.00019578,2]
[360158092,1746581452887,-303.28,0.00019578,2]
[360158093,1746581452897,-650.21,0.00019578,2]
[360158094,1746581452906,-500.0,0.00019578,2]
[360158095,1746581452916,-650.21,0.00019578,2]
[360158096,1746581452925,-450.0,0.00019578,2]
[360158097,1746581452935,-450.0,0.00019578,2]
[360158098,1746581452944,-836.9,0.00019578,2]
[360158099,1746581452953,-450.0,0.00019578,2]
[360158100,1746581452963,-450.0,0.00019578,2]
[360158101,1746581452972,-836.9,0.00019578,2]
[360158102,1746581452981,-450.0,0.00019578,2]
[360158103,1746581452991,-510.0,0.00019578,2]
[360158104,1746581453000,-450.0,0.00019578,2]
[360158105,1746581453011,-401.12,0.00019578,2]
[360158106,1746581453021,-160.0,0.00019578,2]
[360158107,1746581453030,-795.67,0.00019578,2]
[360158108,1746581453040,-323.05457241,0.00019578,2]
[360158109,1746581453049,-450.0,0.00019578,2]
[360158110,1746581453059,-222.74208092,0.00019578,2]
[360158111,1746581453068,-500.0,0.00019578,2]
[360158112,1746581453077,-500.0,0.00019578,2]
[360158113,1746581453087,-450.0,0.00019578,2]
[360158114,1746581453097,-2444.87,0.00019578,2]
[360158115,1746581453106,-2444.87,0.00019578,2]
[360158116,1746581453116,-450.0,0.00019578,2]
[360158117,1746581453126,-450.0,0.00019578,2]
[360158118,1746581453135,-450.0,0.00019578,2]
[360158119,1746581453145,-450.0,0.00019578,2]
[360158120,1746581453154,-450.0,0.00019578,2]
[360158121,1746581453163,-660.45,0.00019578,2]
[360158122,1746581453173,-660.45,0.00019578,2]
[360158123,1746581453182,-660.45,0.00019578,2]
[360158124,1746581453191,-450.0,0.00019578,2]
[360158125,1746581453201,-485.95247903,0.00019578,2]
[360158126,1746581453210,-477.62233835,0.00019578,2]
[360158127,1746581453220,-578.17,0.00019578,2]
[360158128,1746581453229,-2526.0,0.00019578,2]
[360158129,1746581453238,-2526.0,0.00019578,2]
[360158130,1746581453248,-504.9,0.00019578,2]
[360158131,1746581453258,-504.9,0.00019578,2]
[360158132,1746581453267,-834.51,0.00019578,2]
[360158133,1746581453278,-834.51,0.00019578,2]
[360158134,1746581453288,-725.86,0.00019578,2]
[360158135,1746581453298,-725.86,0.00019578,2]
[360158136,1746581453307,-2165.98,0.00019578,2]
[360158137,1746581453317,-450.0,0.00019578,2]
[360158138,1746581453327,-2165.98,0.00019578,2]
[360158139,1746581453336,-1031.99,0.00019578,2]
[360158140,1746581453347,-450.0,0.00019578,2]
[360158141,1746581453357,-2165.98,0.00019578,2]
[360158142,1746581453366,-355.38026447,0.00019578,2]
[360158143,1746581453376,-151.0,0.00019578,2]
[360158144,1746581453385,-281.589328,0.00019578,2]
[360158145,1746581453395,-450.0,0.00019578,2]
[360158146,1746581453404,-450.0,0.00019578,2]
[360158147,1746581453413,-450.0,0.00019578,2]
[360158148,1746581453424,-156.43647503,0.00019578,2]
[360158149,1746581453435,-151.0,0.00019578,2]
[360158150,1746581453444,-404.57548089,0.00019578,2]
[360158151,1746581453453,-281.589328,0.00019578,2]
[360158152,1746581453462,-197.25313853,0.00019578,2]
[360158153,1746581453472,-450.0,0.00019578,2]
[360158154,1746581453481,-450.0,0.00019578,2]
[360158155,1746581453490,-450.0,0.00019578,2]
[360158156,1746581453499,-2249.28392155,0.00019578,2]
[360158157,1746581453509,-450.0,0.00019578,2]
[360158158,1746581453518,-151.0,0.00019578,2]
[360158159,1746581453527,-450.0,0.00019578,2]
[360158160,1746581453537,-151.0,0.00019578,2]
[360158161,1746581453546,-450.0,0.00019578,2]
[360158162,1746581453555,-450.0,0.00019578,2]
[360158163,1746581453564,-468.1764466,0.00019578,2]
[360158164,1746581453574,-600.51,0.00019578,2]
[360158165,1746581453583,-600.51,0.00019578,2]
[360158166,1746581453593,-1079.94,0.00019578,2]
[360158167,1746581453602,-787.37,0.00019578,2]
[360158168,1746581453611,-787.37,0.00019578,2]
[360158169,1746581453621,-450.0,0.00019578,2]
[360158170,1746581453630,-787.37,0.00019578,2]
[360158171,1746581453639,-679.87,0.00019578,2]
[360158172,1746581453648,-450.0,0.00019578,2]
[360158173,1746581453657,-679.87,0.00019578,2]
[360158174,1746581453667,-2009.99,0.00019578,2]
[360158175,1746581453676,-450.0,0.00019578,2]
[360158176,1746581453685,-450.0,0.00019578,2]
[360158177,1746581453694,-450.0,0.00019578,2]
[360158178,1746581453703,-450.0,0.00019578,2]
[360158179,1746581453712,-450.0,0.00019578,2]
[360158180,1746581453721,-153.177351,0.00019578,2]
[360158181,1746581453730,-1089.52,0.00019578,2]
[360158182,1746581453739,-450.0,0.00019578,2]
[360158183,1746581453748,-1089.52,0.00019578,2]
[360158184,1746581453757,-455.68,0.00019578,2]
[360158185,1746581453766,-455.68,0.00019578,2]
[360158186,1746581453776,-450.0,0.00019578,2]
[360158187,1746581453785,-450.0,0.00019578,2]
[360158188,1746581453794,-455.68,0.00019578,2]
[360158189,1746581453803,-450.0,0.00019578,2]
[360158190,1746581453813,-450.0,0.00019578,2]
[360158191,1746581453822,-450.0,0.00019579,2]
[360158192,1746581453832,-286.56975481,0.00019579,2]
[360158193,1746581453841,-450.0,0.00019579,2]
[360158194,1746581453852,-450.0,0.00019579,2]
[360158195,1746581453866,-152.02164881,0.00019579,2]
[360158196,1746581453875,-447.23227877,0.00019579,2]
[360158197,1746581453885,-450.0,0.00019579,2]
[360158198,1746581453894,-450.0,0.00019579,2]
[360158199,1746581453904,-450.0,0.00019579,2]
[360158200,1746581453913,-450.0,0.00019579,2]
[360158201,1746581453923,-264.00113941,0.00019579,2]
[360158202,1746581453933,-450.0,0.00019579,2]
[360158203,1746581453942,-450.0,0.00019579,2]
[360158204,1746581453953,-450.0,0.00019579,2]
[360158205,1746581453962,-450.0,0.00019579,2]
[360158206,1746581453972,-815.99,0.00019579,2]
[360158207,1746581453981,-450.0,0.00019579,2]
[360158208,1746581453990,-815.99,0.00019579,2]
[360158209,1746581453999,-450.0,0.00019579,2]
[360158210,1746581454008,-450.0,0.00019579,2]
[360158211,1746581454018,-450.0,0.00019579,2]
[360158212,1746581454027,-450.0,0.00019579,2]
[360158213,1746581454036,-450.0,0.00019579,2]
[360158214,1746581454046,-488.42063572,0.00019579,2]
[360158215,1746581454056,-450.0,0.00019579,2]
[360158216,1746581454065,-450.0,0.00019579,2]
[360158217,1746581454074,-450.0,0.00019579,2]
[360158218,1746581454084,-388.6913376,0.00019579,2]
[360158219,1746581454094,-450.0,0.00019579,2]
[360158220,1746581454104,-450.0,0.00019579,2]
[360158221,1746581454115,-486.93,0.00019579,2]
[360158222,1746581454125,-486.93,0.00019579,2]
[360158223,1746581454134,-450.0,0.00019579,2]
[360158224,1746581454144,-185.926927,0.00019579,2]
[360158225,1746581454154,-450.0,0.00019579,2]
[360158226,1746581454164,-412.52998212,0.00019579,2]
[360158227,1746581454175,-450.0,0.00019579,2]
[360158228,1746581454185,-450.0,0.00019579,2]
[360158229,1746581454195,-450.0,0.00019579,2]
[360158230,1746581454295,-548.31027122,0.00019579,2]
[360158231,1746581454305,-450.0,0.00019579,2]
[360158232,1746581454316,-450.0,0.00019579,2]
[360158233,1746581454326,-450.0,0.00019579,2]
[360158234,1746581454336,-189.21139079,0.00019579,2]
[360158235,1746581454347,-450.0,0.00019579,2]
[360158236,1746581454357,-183.07325535,0.00019579,2]
[360158237,1746581454366,-450.0,0.00019579,2]
[360158238,1746581454375,-450.0,0.00019579,2]
[360158239,1746581454385,-450.0,0.00019579,2]
[360158240,1746581454396,-450.0,0.00019579,2]
[360158241,1746581454406,-450.0,0.00019579,2]
[360158242,1746581454416,-450.0,0.00019579,2]
[360158243,1746581454425,-450.0,0.00019579,2]
[360158244,1746581454435,-189.56294831,0.00019579,2]
[360158245,1746581454446,-450.0,0.00019579,2]
[360158246,1746581454456,-195.95634592,0.00019579,2]
[360158247,1746581454465,-450.0,0.00019579,2]
[360158248,1746581454474,-450.0,0.00019579,2]
[360158249,1746581454483,-450.0,0.00019579,2]
[360158250,1746581454492,-450.0,0.00019579,2]
[360158251,1746581454501,-560.0,0.00019579,2]
[360158252,1746581454510,-450.0,0.00019579,2]
[360158253,1746581454519,-450.0,0.00019579,2]
[360158254,1746581454528,-450.0,0.00019579,2]
[360158255,1746581454538,-511.16,0.00019579,2]
[360158256,1746581454548,-573.44,0.00019579,2]
[360158257,1746581454558,-151.0,0.00019579,2]
[360158258,1746581454567,-151.0,0.00019579,2]
[360158259,1746581454577,-450.0,0.00019579,2]
[360158260,1746581454586,-151.0,0.00019579,2]
[360158261,1746581454595,-151.0,0.00019579,2]
[360158262,1746581454605,-151.0,0.00019579,2]
[360158263,1746581454615,-450.0,0.00019579,2]